[Event "Late-Titled-Tuesday-Blitz-April-30-2024"]
[Site "Chess.com"]
[Date "2024.04.30"]
[Round "10"]
[White "PapaieDudu"]
[Black "Darkbluelord"]
[Result "1-0"]
[WhiteElo "2383"]
[BlackElo "2193"]
[TimeControl "180+1"]
[EndTime "15:51:56 PDT"]
[Termination "PapaieDudu won by resignation"]

1. Nf3 {[%clk 0:03:00.9]} 1... Nf6 {[%clk 0:02:58.8]} 2. d4 {[%clk 0:03:01.4]}
2... c5 {[%clk 0:02:57.6]} 3. dxc5 {[%clk 0:03:00.2]} 3... e6 {[%clk 0:02:57.3]}
4. b4 {[%clk 0:03:00.3]} 4... a5 {[%clk 0:02:54.3]} 5. c3 {[%clk 0:03:01]} 5...
Ne4 {[%clk 0:02:46.2]} 6. Qc2 {[%clk 0:02:59.3]} 6... f5 {[%clk 0:02:46.2]} 7.
Nbd2 {[%clk 0:02:58.4]} 7... d5 {[%clk 0:02:33.8]} 8. e3 {[%clk 0:02:56]} 8...
Be7 {[%clk 0:02:31.5]} 9. Bd3 {[%clk 0:02:54.4]} 9... O-O {[%clk 0:02:31.2]} 10.
O-O {[%clk 0:02:54.2]} 10... Bf6 {[%clk 0:02:31]} 11. Bb2 {[%clk 0:02:54.1]}
11... Nc6 {[%clk 0:02:28.2]} 12. a3 {[%clk 0:02:53.3]} 12... e5 {[%clk
0:02:09.3]} 13. Rfd1 {[%clk 0:02:52.7]} 13... Nxd2 {[%clk 0:02:04.2]} 14. Nxd2
{[%clk 0:02:51.6]} 14... e4 {[%clk 0:02:04.3]} 15. Be2 {[%clk 0:02:50.4]} 15...
Ne5 {[%clk 0:01:58.2]} 16. Nb3 {[%clk 0:02:45.7]} 16... a4 {[%clk 0:01:45.4]}
17. Na5 {[%clk 0:02:43.9]} 17... Qe8 {[%clk 0:01:43.8]} 18. Rxd5 {[%clk
0:02:42.2]} 18... Be6 {[%clk 0:01:37.1]} 19. Rd6 {[%clk 0:02:41.9]} 19... Nf7
{[%clk 0:01:15.4]} 20. Nxb7 {[%clk 0:02:37]} 20... Nxd6 {[%clk 0:01:12.1]} 21.
Nxd6 {[%clk 0:02:37.1]} 21... Qg6 {[%clk 0:01:05.5]} 22. c4 {[%clk 0:02:25.3]}
22... Rfd8 {[%clk 0:00:53]} 23. Rd1 {[%clk 0:02:21.5]} 23... Be7 {[%clk
0:00:49.4]} 24. Be5 {[%clk 0:02:19.1]} 24... Bxd6 {[%clk 0:00:39.6]} 25. Rxd6
{[%clk 0:02:14.1]} 25... Rxd6 {[%clk 0:00:35.5]} 26. cxd6 {[%clk 0:02:13.1]}
26... Bd7 {[%clk 0:00:25.8]} 27. c5 {[%clk 0:02:11.1]} 27... Rb8 {[%clk
0:00:20.4]} 28. c6 {[%clk 0:02:09.2]} 28... Qh6 {[%clk 0:00:13.4]} 1-0

[Event "Late-Titled-Tuesday-Blitz-April-30-2024"]
[Site "Chess.com"]
[Date "2024.04.30"]
[Round "10"]
[White "superchess02"]
[Black "dropstoneDP"]
[Result "1/2-1/2"]
[WhiteElo "2879"]
[BlackElo "3000"]
[TimeControl "180+1"]
[EndTime "15:51:59 PDT"]
[Termination "Game drawn by repetition"]

1. d4 {[%clk 0:03:00.9]} 1... d5 {[%clk 0:02:59.8]} 2. c4 {[%clk 0:03:01.4]}
2... dxc4 {[%clk 0:03:00.4]} 3. Nf3 {[%clk 0:03:00.5]} 3... Nf6 {[%clk
0:02:58.8]} 4. e3 {[%clk 0:03:01]} 4... e6 {[%clk 0:02:58.8]} 5. Bxc4 {[%clk
0:03:01.2]} 5... a6 {[%clk 0:02:59.5]} 6. O-O {[%clk 0:02:59.5]} 6... c5 {[%clk
0:03:00.1]} 7. Re1 {[%clk 0:02:56.5]} 7... Nc6 {[%clk 0:02:58.5]} 8. Nc3 {[%clk
0:02:49.2]} 8... b5 {[%clk 0:02:57.8]} 9. Bd3 {[%clk 0:02:48.8]} 9... Bb7 {[%clk
0:02:56.2]} 10. a4 {[%clk 0:02:40]} 10... b4 {[%clk 0:02:55.4]} 11. Ne4 {[%clk
0:02:40.6]} 11... Na5 {[%clk 0:02:56]} 12. Nxc5 {[%clk 0:02:38.5]} 12... Bxc5
{[%clk 0:02:54.9]} 13. dxc5 {[%clk 0:02:39.4]} 13... Be4 {[%clk 0:02:51.5]} 14.
Bxe4 {[%clk 0:02:33.8]} 14... Qxd1 {[%clk 0:02:49.3]} 15. Bc6+ {[%clk
0:02:28.9]} 15... Qd7 {[%clk 0:02:44.9]} 16. Bxd7+ {[%clk 0:02:28.9]} 16... Nxd7
{[%clk 0:02:45.8]} 17. c6 {[%clk 0:02:26.7]} 17... Nxc6 {[%clk 0:02:37.2]} 18.
e4 {[%clk 0:02:26.7]} 18... Nde5 {[%clk 0:02:25.3]} 19. Nxe5 {[%clk 0:02:23.5]}
19... Nxe5 {[%clk 0:02:26.2]} 20. Be3 {[%clk 0:02:24.2]} 20... Rc8 {[%clk
0:02:14.1]} 21. Bd4 {[%clk 0:02:15.3]} 21... f6 {[%clk 0:02:13.1]} 22. Bxe5
{[%clk 0:02:14.3]} 22... fxe5 {[%clk 0:02:14]} 23. Rac1 {[%clk 0:02:14.5]} 23...
Ke7 {[%clk 0:02:12.7]} 24. Kf1 {[%clk 0:02:10.2]} 24... Rhd8 {[%clk 0:02:04.6]}
25. Ke2 {[%clk 0:02:10.1]} 25... b3 {[%clk 0:02:04.3]} 26. f3 {[%clk 0:01:57.1]}
26... Rxc1 {[%clk 0:01:57.6]} 27. Rxc1 {[%clk 0:01:58]} 27... Rd4 {[%clk
0:01:57.7]} 28. Rc3 {[%clk 0:01:43.7]} 28... Rxa4 {[%clk 0:01:55.2]} 29. Rxb3
{[%clk 0:01:43.6]} 29... Ra1 {[%clk 0:01:48.7]} 30. Rb7+ {[%clk 0:01:39.5]}
30... Kf6 {[%clk 0:01:48.6]} 31. Kf2 {[%clk 0:01:10.4]} 31... a5 {[%clk
0:01:47.9]} 32. b3 {[%clk 0:01:07.1]} 32... a4 {[%clk 0:01:45.5]} 33. bxa4
{[%clk 0:01:06.3]} 33... Rxa4 {[%clk 0:01:46.4]} 34. h4 {[%clk 0:01:06.4]} 34...
h5 {[%clk 0:01:44.6]} 35. Rb8 {[%clk 0:01:06.3]} 35... Ra2+ {[%clk 0:01:41.6]}
36. Kg3 {[%clk 0:01:06.1]} 36... g6 {[%clk 0:01:41.1]} 37. Rf8+ {[%clk
0:01:05.2]} 37... Kg7 {[%clk 0:01:41.3]} 38. Rb8 {[%clk 0:01:06.1]} 38... Kf6
{[%clk 0:01:41.7]} 39. Rf8+ {[%clk 0:01:06.2]} 39... Kg7 {[%clk 0:01:42]} 40.
Rb8 {[%clk 0:01:07.1]} 40... Kf6 {[%clk 0:01:42.5]} 1/2-1/2

[Event "Late-Titled-Tuesday-Blitz-April-30-2024"]
[Site "Chess.com"]
[Date "2024.04.30"]
[Round "10"]
[White "Roedor"]
[Black "kylelancman"]
[Result "0-1"]
[WhiteElo "2383"]
[BlackElo "2510"]
[TimeControl "180+1"]
[EndTime "15:52:50 PDT"]
[Termination "kylelancman won on time"]

1. Nf3 {[%clk 0:02:56.4]} 1... Nf6 {[%clk 0:02:58.6]} 2. c4 {[%clk 0:02:56.4]}
2... e6 {[%clk 0:02:55.8]} 3. g3 {[%clk 0:02:56.2]} 3... a6 {[%clk 0:02:55.5]}
4. Bg2 {[%clk 0:02:56]} 4... b5 {[%clk 0:02:55.7]} 5. b3 {[%clk 0:02:53.7]} 5...
Bb7 {[%clk 0:02:55.1]} 6. Bb2 {[%clk 0:02:53.4]} 6... c5 {[%clk 0:02:52.5]} 7.
O-O {[%clk 0:02:53.3]} 7... Be7 {[%clk 0:02:52.3]} 8. e3 {[%clk 0:02:46]} 8...
O-O {[%clk 0:02:51.1]} 9. Qe2 {[%clk 0:02:45.9]} 9... d5 {[%clk 0:02:45.2]} 10.
d4 {[%clk 0:02:41.7]} 10... bxc4 {[%clk 0:02:39]} 11. bxc4 {[%clk 0:02:41.6]}
11... cxd4 {[%clk 0:02:37.6]} 12. Nxd4 {[%clk 0:02:41.6]} 12... Nc6 {[%clk
0:02:33.8]} 13. Rd1 {[%clk 0:02:36.3]} 13... Qb6 {[%clk 0:02:28.7]} 14. Nc3
{[%clk 0:02:19]} 14... Nxd4 {[%clk 0:02:25.6]} 15. Rxd4 {[%clk 0:02:19.9]} 15...
dxc4 {[%clk 0:02:23.6]} 16. Bxb7 {[%clk 0:02:17.3]} 16... Qxb7 {[%clk
0:02:23.1]} 17. Rxc4 {[%clk 0:02:16.7]} 17... Rac8 {[%clk 0:02:19.3]} 18. Rf4
{[%clk 0:01:58.6]} 18... Bd6 {[%clk 0:02:11.1]} 19. Rxf6 {[%clk 0:00:53.9]}
19... gxf6 {[%clk 0:02:12]} 20. Qg4+ {[%clk 0:00:49.9]} 20... Kh8 {[%clk
0:02:12.4]} 21. Nb5 {[%clk 0:00:44.6]} 21... Be5 {[%clk 0:01:56.6]} 22. Bxe5
{[%clk 0:00:44.1]} 22... fxe5 {[%clk 0:01:56]} 23. Nd6 {[%clk 0:00:44.6]} 23...
Qb2 {[%clk 0:01:51.7]} 24. Rd1 {[%clk 0:00:40.9]} 24... Rc1 {[%clk 0:01:48.2]}
25. h4 {[%clk 0:00:05.7]} 25... Qd2 {[%clk 0:01:37.5]} 26. Rxc1 {[%clk
0:00:01.4]} 26... Qxc1+ {[%clk 0:01:38.4]} 27. Kh2 {[%clk 0:00:01.5]} 27... Qc2
{[%clk 0:01:32.6]} 28. Qe4 {[%clk 0:00:00.5]} 28... Qxf2+ {[%clk 0:01:26.1]} 0-1

[Event "Late-Titled-Tuesday-Blitz-April-30-2024"]
[Site "Chess.com"]
[Date "2024.04.30"]
[Round "10"]
[White "vladgoncharov"]
[Black "Atanejhad"]
[Result "1-0"]
[WhiteElo "2598"]
[BlackElo "2443"]
[TimeControl "180+1"]
[EndTime "15:52:55 PDT"]
[Termination "vladgoncharov won on time"]

1. d4 {[%clk 0:03:00.9]} 1... d5 {[%clk 0:02:58.6]} 2. c4 {[%clk 0:03:00.4]}
2... c6 {[%clk 0:02:58.3]} 3. Nf3 {[%clk 0:03:00.4]} 3... Nf6 {[%clk 0:02:58.8]}
4. e3 {[%clk 0:03:00.6]} 4... e6 {[%clk 0:02:57.6]} 5. Nbd2 {[%clk 0:03:00.1]}
5... Bd6 {[%clk 0:02:57.2]} 6. Bd3 {[%clk 0:02:59.3]} 6... dxc4 {[%clk 0:02:57]}
7. Nxc4 {[%clk 0:02:59]} 7... Bc7 {[%clk 0:02:51.5]} 8. O-O {[%clk 0:02:57.7]}
8... O-O {[%clk 0:02:49.2]} 9. e4 {[%clk 0:02:58.1]} 9... h6 {[%clk 0:02:45.9]}
10. e5 {[%clk 0:02:56.6]} 10... Nd5 {[%clk 0:02:45.6]} 11. Qe2 {[%clk
0:02:56.3]} 11... Nd7 {[%clk 0:02:43.2]} 12. Qe4 {[%clk 0:02:44.6]} 12... f5
{[%clk 0:01:42]} 13. exf6 {[%clk 0:02:44]} 13... N7xf6 {[%clk 0:01:40.8]} 14.
Qh4 {[%clk 0:02:43.7]} 14... Bd7 {[%clk 0:01:24.2]} 15. Nce5 {[%clk 0:02:32]}
15... Be8 {[%clk 0:01:21.3]} 16. Re1 {[%clk 0:02:19.3]} 16... Nb4 {[%clk
0:01:15.7]} 17. Bb1 {[%clk 0:02:14.8]} 17... Nbd5 {[%clk 0:01:14.2]} 18. Qh3
{[%clk 0:02:10.7]} 18... Qe7 {[%clk 0:01:10.6]} 19. a3 {[%clk 0:02:06.6]} 19...
Rd8 {[%clk 0:01:08.7]} 20. Ba2 {[%clk 0:02:04.4]} 20... Bh5 {[%clk 0:01:03.1]}
21. Bd2 {[%clk 0:02:00.3]} 21... Bxf3 {[%clk 0:01:02.3]} 22. Nxf3 {[%clk
0:01:59.5]} 22... Rfe8 {[%clk 0:01:00.5]} 23. Bb4 {[%clk 0:01:55.9]} 23... Qf7
{[%clk 0:00:54.4]} 24. Bd2 {[%clk 0:01:51.8]} 24... Nd7 {[%clk 0:00:44.6]} 25.
Re2 {[%clk 0:01:45.3]} 25... e5 {[%clk 0:00:38.9]} 26. dxe5 {[%clk 0:01:43]}
26... Nxe5 {[%clk 0:00:39.8]} 27. Nh4 {[%clk 0:01:29.7]} 27... Nf4 {[%clk
0:00:33]} 28. Bxf4 {[%clk 0:01:28.6]} 28... Nc4 {[%clk 0:00:23.3]} 29. Rxe8+
{[%clk 0:01:27.9]} 29... Rxe8 {[%clk 0:00:22.8]} 30. Bxc7 {[%clk 0:01:27.6]} 1-0

[Event "Late-Titled-Tuesday-Blitz-April-30-2024"]
[Site "Chess.com"]
[Date "2024.04.30"]
[Round "10"]
[White "Slovineanu"]
[Black "rikchessmx"]
[Result "1-0"]
[WhiteElo "2469"]
[BlackElo "2284"]
[TimeControl "180+1"]
[EndTime "15:52:58 PDT"]
[Termination "Slovineanu won by resignation"]

1. d4 {[%clk 0:03:00.9]} 1... Nf6 {[%clk 0:02:59.3]} 2. Nf3 {[%clk 0:03:00.1]}
2... e6 {[%clk 0:02:59.7]} 3. c4 {[%clk 0:02:59.9]} 3... c5 {[%clk 0:02:59.8]}
4. d5 {[%clk 0:02:59.7]} 4... b5 {[%clk 0:02:59.7]} 5. dxe6 {[%clk 0:02:56.7]}
5... fxe6 {[%clk 0:03:00.6]} 6. cxb5 {[%clk 0:02:56.8]} 6... Bb7 {[%clk
0:03:00.4]} 7. Nc3 {[%clk 0:02:48.7]} 7... d5 {[%clk 0:02:59.9]} 8. Bg5 {[%clk
0:02:42.1]} 8... Bd6 {[%clk 0:02:58.7]} 9. e4 {[%clk 0:02:28.5]} 9... Nbd7
{[%clk 0:02:52]} 10. exd5 {[%clk 0:02:24.7]} 10... exd5 {[%clk 0:02:51.7]} 11.
Bd3 {[%clk 0:02:15.5]} 11... d4 {[%clk 0:02:48.1]} 12. Ne4 {[%clk 0:02:07.4]}
12... Qe7 {[%clk 0:02:47.6]} 13. O-O {[%clk 0:02:02.2]} 13... Bxe4 {[%clk
0:02:47.2]} 14. Bxe4 {[%clk 0:02:02]} 14... O-O-O {[%clk 0:02:45.2]} 15. Re1
{[%clk 0:01:54.8]} 15... Qf7 {[%clk 0:02:40.8]} 16. Bc6 {[%clk 0:01:50]} 16...
h6 {[%clk 0:02:37.3]} 17. Qa4 {[%clk 0:01:39.9]} 17... Nb8 {[%clk 0:02:36]} 18.
Bh4 {[%clk 0:01:30.2]} 18... Qc7 {[%clk 0:02:34.3]} 19. Bg3 {[%clk 0:01:27.3]}
19... Bxg3 {[%clk 0:02:33.2]} 20. hxg3 {[%clk 0:01:26.9]} 20... a6 {[%clk
0:02:15.2]} 21. Rac1 {[%clk 0:01:21]} 21... Qb6 {[%clk 0:02:08.3]} 22. Re5
{[%clk 0:01:14.2]} 22... Nfd7 {[%clk 0:01:56.2]} 23. Re7 {[%clk 0:01:08]} 23...
axb5 {[%clk 0:01:32.8]} 24. Bxb5 {[%clk 0:01:06.2]} 24... Rhe8 {[%clk
0:01:28.8]} 25. Rxe8 {[%clk 0:01:02.1]} 25... Rxe8 {[%clk 0:01:28.3]} 26. Nxd4
{[%clk 0:01:01.7]} 26... Kd8 {[%clk 0:01:18.3]} 27. Nc6+ {[%clk 0:01:01]} 27...
Nxc6 {[%clk 0:01:17.6]} 28. Bxc6 {[%clk 0:01:01.7]} 28... Re7 {[%clk 0:01:13]}
29. Rd1 {[%clk 0:01:01]} 29... Qc7 {[%clk 0:01:06.9]} 30. Bxd7 {[%clk
0:00:49.2]} 30... Rxd7 {[%clk 0:01:06.5]} 31. Rxd7+ {[%clk 0:00:48.5]} 31...
Qxd7 {[%clk 0:01:06.6]} 32. Qxd7+ {[%clk 0:00:49.1]} 32... Kxd7 {[%clk
0:01:06.8]} 33. Kf1 {[%clk 0:00:49.7]} 33... Kc6 {[%clk 0:01:06.4]} 34. Ke2
{[%clk 0:00:50.1]} 34... Kb5 {[%clk 0:01:07.3]} 35. Kd3 {[%clk 0:00:49.3]} 35...
Kb4 {[%clk 0:01:07.9]} 36. g4 {[%clk 0:00:44.9]} 36... g5 {[%clk 0:01:06.9]} 37.
g3 {[%clk 0:00:43.5]} 37... c4+ {[%clk 0:01:06.2]} 38. Kd4 {[%clk 0:00:42.7]}
38... Kb5 {[%clk 0:01:04.1]} 39. f4 {[%clk 0:00:41.4]} 39... gxf4 {[%clk
0:01:02.2]} 40. gxf4 {[%clk 0:00:41.6]} 1-0

[Event "Late-Titled-Tuesday-Blitz-April-30-2024"]
[Site "Chess.com"]
[Date "2024.04.30"]
[Round "10"]
[White "NovakRatko"]
[Black "merinasian"]
[Result "1-0"]
[WhiteElo "2429"]
[BlackElo "2586"]
[TimeControl "180+1"]
[EndTime "15:53:07 PDT"]
[Termination "NovakRatko won by resignation"]

1. d4 {[%clk 0:02:59.4]} 1... d6 {[%clk 0:02:59.8]} 2. f4 {[%clk 0:02:59]} 2...
Nd7 {[%clk 0:02:59.1]} 3. e4 {[%clk 0:02:59]} 3... e5 {[%clk 0:02:57.3]} 4. fxe5
{[%clk 0:02:58.9]} 4... dxe5 {[%clk 0:02:57.7]} 5. Nf3 {[%clk 0:02:57.8]} 5...
exd4 {[%clk 0:02:54.6]} 6. Qxd4 {[%clk 0:02:56.9]} 6... Ngf6 {[%clk 0:02:50.5]}
7. Bg5 {[%clk 0:02:52.6]} 7... h6 {[%clk 0:02:47.2]} 8. Bh4 {[%clk 0:02:52]}
8... Bc5 {[%clk 0:02:41.5]} 9. Qc3 {[%clk 0:02:38]} 9... Qe7 {[%clk 0:02:38.4]}
10. Nbd2 {[%clk 0:02:37]} 10... Bb4 {[%clk 0:02:19.9]} 11. Qxc7 {[%clk
0:02:23.7]} 11... Qxe4+ {[%clk 0:02:19]} 12. Be2 {[%clk 0:02:13.9]} 12... Bxd2+
{[%clk 0:01:27.1]} 13. Kxd2 {[%clk 0:02:13.1]} 13... O-O {[%clk 0:01:22.1]} 14.
Bd3 {[%clk 0:02:12.2]} 14... Qb4+ {[%clk 0:01:18]} 15. Qc3 {[%clk 0:02:11.7]}
15... Qf4+ {[%clk 0:01:17.9]} 16. Kd1 {[%clk 0:02:07.3]} 16... Nd5 {[%clk
0:01:05.5]} 17. Qd4 {[%clk 0:02:01.6]} 17... Qxd4 {[%clk 0:01:00.4]} 18. Nxd4
{[%clk 0:02:01.1]} 18... Ne5 {[%clk 0:01:00.4]} 19. Be4 {[%clk 0:01:47.4]} 19...
Ne3+ {[%clk 0:00:55.7]} 20. Ke2 {[%clk 0:01:44.3]} 20... N3c4 {[%clk 0:00:52.6]}
21. b3 {[%clk 0:01:37.5]} 21... Nd6 {[%clk 0:00:49.1]} 22. Bd5 {[%clk
0:01:26.8]} 22... Re8 {[%clk 0:00:45.6]} 23. Kd2 {[%clk 0:01:26.4]} 23... Bg4
{[%clk 0:00:38.8]} 24. Rae1 {[%clk 0:01:24.8]} 24... Ng6 {[%clk 0:00:31.9]} 25.
Bg3 {[%clk 0:01:23.9]} 25... Rxe1 {[%clk 0:00:29.2]} 26. Rxe1 {[%clk 0:01:23.6]}
26... Rd8 {[%clk 0:00:27.6]} 27. c4 {[%clk 0:01:23.7]} 27... Nf5 {[%clk
0:00:22.6]} 28. Nxf5 {[%clk 0:01:21.4]} 28... Bxf5 {[%clk 0:00:22.9]} 29. Kc3
{[%clk 0:01:21.3]} 29... Kf8 {[%clk 0:00:21.3]} 30. Bxb7 {[%clk 0:01:17.8]}
30... Ne7 {[%clk 0:00:20]} 31. c5 {[%clk 0:01:14]} 31... Rd3+ {[%clk 0:00:19.7]}
32. Kc4 {[%clk 0:01:13]} 32... Rd2 {[%clk 0:00:20]} 33. Bd6 {[%clk 0:01:11.9]}
33... Be6+ {[%clk 0:00:16.6]} 34. Kc3 {[%clk 0:01:11.4]} 34... Rxg2 {[%clk
0:00:16]} 35. Bxg2 {[%clk 0:01:11.2]} 1-0

[Event "Late-Titled-Tuesday-Blitz-April-30-2024"]
[Site "Chess.com"]
[Date "2024.04.30"]
[Round "10"]
[White "azikom"]
[Black "miaou33"]
[Result "1-0"]
[WhiteElo "2728"]
[BlackElo "2535"]
[TimeControl "180+1"]
[EndTime "15:53:09 PDT"]
[Termination "azikom won by resignation"]

1. d4 {[%clk 0:03:00.9]} 1... d5 {[%clk 0:02:59.7]} 2. Bf4 {[%clk 0:03:01.2]}
2... Bf5 {[%clk 0:02:53.9]} 3. e3 {[%clk 0:03:01]} 3... e6 {[%clk 0:02:52.2]} 4.
Nf3 {[%clk 0:02:59.7]} 4... Nf6 {[%clk 0:02:52]} 5. a3 {[%clk 0:02:57.9]} 5...
Bd6 {[%clk 0:02:51.9]} 6. Bg3 {[%clk 0:02:57.4]} 6... Ne4 {[%clk 0:02:40.3]} 7.
c4 {[%clk 0:02:56.2]} 7... Nxg3 {[%clk 0:02:26.8]} 8. hxg3 {[%clk 0:02:57.1]}
8... dxc4 {[%clk 0:02:17.4]} 9. Bxc4 {[%clk 0:02:56.3]} 9... Nc6 {[%clk
0:02:07.7]} 10. Nc3 {[%clk 0:02:55.1]} 10... O-O {[%clk 0:02:04.3]} 11. Bd3
{[%clk 0:02:49.7]} 11... h6 {[%clk 0:01:54.1]} 12. Bxf5 {[%clk 0:02:48.4]} 12...
exf5 {[%clk 0:01:54.2]} 13. Qc2 {[%clk 0:02:48.3]} 13... Qf6 {[%clk 0:01:50]}
14. O-O-O {[%clk 0:02:43]} 14... a5 {[%clk 0:01:48.9]} 15. Kb1 {[%clk 0:02:36]}
15... Rfe8 {[%clk 0:01:39.5]} 16. Nb5 {[%clk 0:02:34.3]} 16... Ne7 {[%clk
0:01:20.2]} 17. Rc1 {[%clk 0:02:21.9]} 17... c6 {[%clk 0:01:11.7]} 18. Nxd6
{[%clk 0:02:21.6]} 18... Qxd6 {[%clk 0:01:12.6]} 19. Ne5 {[%clk 0:02:21.9]}
19... Ng6 {[%clk 0:01:06.1]} 20. Nc4 {[%clk 0:02:16.2]} 20... Qe6 {[%clk
0:01:02.7]} 21. Rh5 {[%clk 0:02:05.4]} 21... Ne7 {[%clk 0:00:51]} 22. Ne5 {[%clk
0:02:05.3]} 22... f6 {[%clk 0:00:48]} 23. Nd3 {[%clk 0:02:03.8]} 23... b5 {[%clk
0:00:45.6]} 24. Nc5 {[%clk 0:02:03]} 24... Qf7 {[%clk 0:00:45.4]} 25. Rhh1
{[%clk 0:02:00.6]} 25... b4 {[%clk 0:00:41.9]} 26. a4 {[%clk 0:02:00.4]} 26...
Rab8 {[%clk 0:00:35.9]} 27. Qc4 {[%clk 0:01:53.6]} 27... Nd5 {[%clk 0:00:36.1]}
28. Ka1 {[%clk 0:01:38.2]} 28... b3 {[%clk 0:00:34.7]} 29. Nd3 {[%clk
0:01:35.2]} 29... Rec8 {[%clk 0:00:16.6]} 30. Kb1 {[%clk 0:01:32.5]} 30... Qe6
{[%clk 0:00:07.7]} 31. Nf4 {[%clk 0:01:29.9]} 31... Qe4+ {[%clk 0:00:07.2]} 32.
Qd3 {[%clk 0:01:23.1]} 32... Rb4 {[%clk 0:00:06]} 33. Qxe4 {[%clk 0:01:21.6]}
33... fxe4 {[%clk 0:00:05.1]} 34. Nxd5 {[%clk 0:01:21.6]} 34... Kf7 {[%clk
0:00:04]} 1-0

[Event "Late-Titled-Tuesday-Blitz-April-30-2024"]
[Site "Chess.com"]
[Date "2024.04.30"]
[Round "10"]
[White "mortngabriel"]
[Black "jaramsdal"]
[Result "1-0"]
[WhiteElo "2506"]
[BlackElo "2391"]
[TimeControl "180+1"]
[EndTime "15:53:09 PDT"]
[Termination "mortngabriel won by resignation"]

1. e4 {[%clk 0:03:00.9]} 1... e5 {[%clk 0:02:59.1]} 2. f4 {[%clk 0:03:00.3]}
2... exf4 {[%clk 0:02:58.2]} 3. Nf3 {[%clk 0:02:59.6]} 3... Nf6 {[%clk
0:02:58.1]} 4. e5 {[%clk 0:02:58.9]} 4... Nh5 {[%clk 0:02:57.8]} 5. d4 {[%clk
0:02:48]} 5... d6 {[%clk 0:02:58]} 6. Qe2 {[%clk 0:02:44.8]} 6... Be6 {[%clk
0:02:28.5]} 7. Nc3 {[%clk 0:02:27.7]} 7... d5 {[%clk 0:02:26.2]} 8. Qb5+ {[%clk
0:02:23.5]} 8... Nc6 {[%clk 0:02:09.7]} 9. Qxb7 {[%clk 0:02:17.9]} 9... Nb4
{[%clk 0:02:05.4]} 10. Bb5+ {[%clk 0:02:15.3]} 10... Ke7 {[%clk 0:01:51.3]} 11.
Ba4 {[%clk 0:02:01.2]} 11... Qb8 {[%clk 0:01:29.5]} 12. Qxb8 {[%clk 0:01:52.2]}
12... Rxb8 {[%clk 0:01:30.4]} 13. a3 {[%clk 0:01:36.5]} 13... Na6 {[%clk
0:01:29.7]} 14. b4 {[%clk 0:01:36.9]} 14... Kd8 {[%clk 0:01:27.9]} 15. Ne2
{[%clk 0:01:29.3]} 15... Rb6 {[%clk 0:01:08.1]} 16. Nxf4 {[%clk 0:01:23.4]}
16... Nxf4 {[%clk 0:01:05.4]} 17. Bxf4 {[%clk 0:01:24.3]} 17... h6 {[%clk
0:01:05.6]} 18. O-O {[%clk 0:01:16.2]} 18... Be7 {[%clk 0:00:59.8]} 19. c4
{[%clk 0:01:08.2]} 19... dxc4 {[%clk 0:00:57.8]} 20. d5 {[%clk 0:01:08.2]} 20...
Bxd5 {[%clk 0:00:50.1]} 21. Rad1 {[%clk 0:01:07]} 21... c6 {[%clk 0:00:50.6]}
22. Bxc6 {[%clk 0:01:06.6]} 22... Rxc6 {[%clk 0:00:51.5]} 23. Rxd5+ {[%clk
0:01:05.4]} 23... Kc7 {[%clk 0:00:51.9]} 24. e6+ {[%clk 0:00:55.9]} 24... Bd6
{[%clk 0:00:51.8]} 25. Nd4 {[%clk 0:00:35.3]} 25... fxe6 {[%clk 0:00:47.4]} 26.
Rxd6 {[%clk 0:00:31.6]} 26... Rxd6 {[%clk 0:00:45.3]} 27. Nb5+ {[%clk
0:00:31.7]} 27... Kc6 {[%clk 0:00:45.8]} 28. Nxd6 {[%clk 0:00:30.7]} 28... c3
{[%clk 0:00:43.5]} 29. b5+ {[%clk 0:00:30.5]} 1-0

[Event "Late-Titled-Tuesday-Blitz-April-30-2024"]
[Site "Chess.com"]
[Date "2024.04.30"]
[Round "10"]
[White "LyonBeast"]
[Black "DominguezOnYoutube"]
[Result "1/2-1/2"]
[WhiteElo "3122"]
[BlackElo "2976"]
[TimeControl "180+1"]
[EndTime "15:53:18 PDT"]
[Termination "Game drawn by agreement"]

1. e4 {[%clk 0:02:53.6]} 1... e5 {[%clk 0:03:00.2]} 2. Nf3 {[%clk 0:02:53]} 2...
Nc6 {[%clk 0:03:00.7]} 3. Bc4 {[%clk 0:02:51.7]} 3... Bc5 {[%clk 0:03:00.8]} 4.
c3 {[%clk 0:02:52.3]} 4... Nf6 {[%clk 0:03:01.1]} 5. d3 {[%clk 0:02:52.9]} 5...
d6 {[%clk 0:03:01.3]} 6. O-O {[%clk 0:02:51.4]} 6... a6 {[%clk 0:03:00.9]} 7. a4
{[%clk 0:02:51]} 7... Ba7 {[%clk 0:03:01.1]} 8. Nbd2 {[%clk 0:02:50.4]} 8... O-O
{[%clk 0:03:00.3]} 9. h3 {[%clk 0:02:45.2]} 9... h6 {[%clk 0:02:59.1]} 10. Re1
{[%clk 0:02:44.8]} 10... Re8 {[%clk 0:02:59.5]} 11. b4 {[%clk 0:02:44.2]} 11...
Be6 {[%clk 0:03:00.2]} 12. Bxe6 {[%clk 0:02:43.4]} 12... Rxe6 {[%clk 0:03:00.9]}
13. Nf1 {[%clk 0:02:42.1]} 13... d5 {[%clk 0:02:53.9]} 14. Ng3 {[%clk
0:02:40.2]} 14... dxe4 {[%clk 0:02:36.1]} 15. dxe4 {[%clk 0:02:41.1]} 15... Qxd1
{[%clk 0:02:35.8]} 16. Rxd1 {[%clk 0:02:41.1]} 16... Rd6 {[%clk 0:02:36.4]} 17.
Ba3 {[%clk 0:02:33.2]} 17... b5 {[%clk 0:02:34]} 18. Rxd6 {[%clk 0:02:04.7]}
18... cxd6 {[%clk 0:02:33.6]} 19. axb5 {[%clk 0:02:05.6]} 19... axb5 {[%clk
0:02:33.7]} 20. Bb2 {[%clk 0:02:06.3]} 20... Rc8 {[%clk 0:02:17.4]} 21. Kf1
{[%clk 0:01:54.3]} 21... d5 {[%clk 0:01:59.7]} 22. Nf5 {[%clk 0:01:48.8]} 22...
Bb8 {[%clk 0:01:36.2]} 23. Ra8 {[%clk 0:01:42.9]} 23... Rd8 {[%clk 0:01:13]} 24.
exd5 {[%clk 0:01:33.7]} 24... Nxd5 {[%clk 0:01:12.5]} 25. c4 {[%clk 0:01:27.3]}
25... bxc4 {[%clk 0:00:52.8]} 26. b5 {[%clk 0:01:25.2]} 26... Nc7 {[%clk
0:00:46.1]} 27. Ra4 {[%clk 0:01:22.8]} 27... Nxb5 {[%clk 0:00:45.5]} 28. Rxc4
{[%clk 0:01:23.4]} 28... Nbd4 {[%clk 0:00:22.5]} 29. N3xd4 {[%clk 0:01:11.9]}
29... Nxd4 {[%clk 0:00:22.3]} 30. Bxd4 {[%clk 0:01:11.4]} 30... exd4 {[%clk
0:00:22.3]} 31. Nxd4 {[%clk 0:01:12.3]} 31... Bd6 {[%clk 0:00:21.9]} 32. Nc6
{[%clk 0:01:10.5]} 32... Re8 {[%clk 0:00:21.2]} 33. Rd4 {[%clk 0:01:09.5]} 33...
Bc5 {[%clk 0:00:19.3]} 34. Rd7 {[%clk 0:01:09.6]} 34... Bf8 {[%clk 0:00:18.2]}
35. h4 {[%clk 0:01:08.8]} 35... Re6 {[%clk 0:00:18.1]} 36. Nd8 {[%clk
0:01:07.2]} 36... Rd6 {[%clk 0:00:15.8]} 37. Rxd6 {[%clk 0:01:05.9]} 37... Bxd6
{[%clk 0:00:16.4]} 38. h5 {[%clk 0:01:05.9]} 38... Kf8 {[%clk 0:00:14.9]} 39.
Nc6 {[%clk 0:01:05.7]} 1/2-1/2